fUSD/lending_fUSD_20250204
["ID","MTS","AMOUNT","RATE_DAILY","PERIOD"]
[351677627,1738708235023,-500.0,0.0001027,2]
[351677628,1738708235032,-210.03591127,0.0001027,2]
[351677629,1738708235042,-500.0,0.0001027,2]
[351677630,1738708235051,-500.0,0.0001027,2]
[351677631,1738708235060,-504.85564013,0.0001027,2]
[351677632,1738708235069,-500.0,0.0001027,2]
[351677633,1738708235078,-500.0,0.0001027,2]
[351677634,1738708235088,-607.97441263,0.0001027,2]
[351677635,1738708235097,-508.10189111,0.0001027,2]
[351677636,1738708235107,-500.0,0.0001027,2]
[351677637,1738708235116,-483.56901628,0.0001027,2]
[351677638,1738708235127,-16.43098372,0.0001027,2]
[351677639,1738708235136,-500.0,0.0001027,2]
[351677640,1738708235146,-244.39188098,0.0001027,2]
[351677641,1738708235202,-208.81270489,0.0001027,2]
[351677642,1738708235210,-500.0,0.0001027,2]
[351677643,1738708235219,-500.0,0.0001027,2]
[351677644,1738708235228,-500.0,0.0001027,2]
[351677645,1738708235236,-500.0,0.0001027,2]
[351677646,1738708235246,-507.81272666,0.0001027,2]
[351677647,1738708235255,-500.0,0.0001027,2]
[351677648,1738708235264,-500.0,0.0001027,2]
[351677649,1738708235276,-320.12205321,0.0001027,2]
[351677650,1738708235291,-183.02587997,0.0001027,2]
[351677651,1738708235300,-500.0,0.0001027,2]
[351677652,1738708235315,-500.0,0.0001027,2]
[351677653,1738708235325,-420.05704058,0.0001027,2]
[351677654,1738708235336,-300.0,0.0001027,2]
[351677655,1738708235345,-500.0,0.0001027,2]
[351677656,1738708235356,-500.0,0.0001027,2]
[351677657,1738708235365,-500.0,0.0001027,2]
[351677658,1738708235374,-500.0,0.0001027,2]
[351677659,1738708235384,-500.0,0.0001027,2]
[351677660,1738708235397,-500.0,0.0001027,2]
[351677661,1738708235407,-500.0,0.0001027,2]
[351677662,1738708235417,-500.0,0.0001027,2]
[351677663,1738708235426,-500.0,0.0001027,2]
[351677664,1738708235435,-280.18666604,0.0001027,2]
[351677665,1738708235466,-219.81333396,0.0001027,2]
[351677666,1738708235475,-85.51795793,0.0001027,2]
[351677667,1738708235487,-414.48204207,0.0001027,2]
[351677668,1738708235497,-500.18215144,0.0001027,2]
[351677669,1738708235506,-526.60618696,0.0001027,2]
[351677670,1738708235516,-500.0,0.0001027,2]
[351677671,1738708235525,-500.0,0.0001027,2]
[351677672,1738708235534,-500.0,0.0001027,2]
[351677673,1738708235546,-500.0,0.0001027,2]
[351677674,1738708235555,-500.0,0.0001027,2]
[351677675,1738708235565,-500.0,0.0001027,2]
[351677676,1738708235575,-500.24759722,0.0001027,2]
[351677677,1738708235585,-500.0,0.0001027,2]
[351677678,1738708235595,-500.0,0.0001027,2]
[351677679,1738708235604,-500.0,0.0001027,2]
[351677680,1738708235615,-500.0,0.0001027,2]
[351677681,1738708235624,-500.0,0.0001027,2]
[351677682,1738708235634,-500.0,0.0001027,2]
[351677683,1738708235642,-500.0,0.0001027,2]
[351677684,1738708235651,-500.0,0.0001027,2]
[351677685,1738708235661,-500.0,0.0001027,2]
[351677686,1738708235670,-500.0,0.0001027,2]
[351677687,1738708235680,-500.0,0.0001027,2]
[351677688,1738708235690,-500.0,0.0001027,2]
[351677689,1738708235704,-500.0,0.0001027,2]
[351677690,1738708235713,-500.0,0.0001027,2]
[351677691,1738708235723,-500.0,0.0001027,2]
[351677692,1738708235734,-500.0,0.0001027,2]
[351677693,1738708235745,-500.0,0.0001027,2]
[351677694,1738708235755,-500.0,0.0001027,2]
[351677695,1738708235766,-500.0,0.0001027,2]
[351677696,1738708235775,-394.58,0.0001027,2]
[351677697,1738708235787,-500.0,0.0001027,2]
[351677698,1738708235798,-500.0,0.0001027,2]
[351677699,1738708235809,-500.0,0.0001027,2]
[351677700,1738708235822,-500.0,0.0001027,2]
[351677701,1738708235830,-500.0,0.0001027,2]
[351677702,1738708235836,-155.85362975,0.0001027,2]
[351677703,1738708235843,-500.0,0.0001027,2]
[351677704,1738708235849,-500.0,0.0001027,2]
[351677705,1738708235855,-500.0,0.0001027,2]
[351677706,1738708235861,-22808.13369626,0.0001027,2]
[351677707,1738708235870,-294.0029053,0.0001027,2]
[351677708,1738708235878,-1537.47542561,0.0001027,2]
[351677709,1738708235886,-315.0,0.0001027,2]
[351677710,1738708235894,-1807.69825574,0.0001027,2]
[351677711,1738708235902,-787.72537109,0.0001027,2]
[351677712,1738708235910,-367.35042861,0.0001027,2]
[351677713,1738708235918,-1627.52420779,0.0001027,2]
[351677714,1738708235926,-7453.55953814,0.0001027,2]
[351677715,1738708235936,-5995.53092008,0.0001027,2]
[351677718,1738708237502,-500.0,0.00010269,2]
[351677719,1738708237512,-4802.29997541,0.0001027,2]
[351677720,1738708237533,-651.24462597,0.0001027,2]
[351677721,1738708237565,-482.640001,0.0001027,2]
[351677722,1738708237597,-26622.10963519,0.0001027,2]
[351677723,1738708237798,-2248.86171293,0.0001027,2]
[351677724,1738708237826,-12088.70039857,0.0001027,2]
[351677730,1738708239638,-666.16550001,0.0001027,2]
[351677731,1738708239766,-3097.34390933,0.0001027,2]
[351677732,1738708239778,-495.75,0.0001027,2]
[351677733,1738708239905,-144960.0,0.0001027,2]
[351677734,1738708239917,-1942.58270965,0.0001027,2]
[351677754,1738708242580,-500.0,0.00010269,2]
[351677755,1738708242590,-500.0,0.00010269,2]
[351677756,1738708242602,-500.0,0.00010269,2]
[351677757,1738708242611,-376.73,0.00010269,2]
[351677758,1738708242621,-46.65,0.0001027,2]
[351677759,1738708242632,-9668.45,0.0001027,2]
[351677760,1738708242642,-5113.99879975,0.0001027,2]
[351677761,1738708242775,-21011.9969961,0.0001027,2]
[351677762,1738708242886,-5065.01602474,0.0001027,2]
[351677797,1738708245664,-500.0,0.00010269,2]
[351677798,1738708245671,-500.0,0.00010269,2]
[351677799,1738708245678,-6600.47681648,0.0001027,2]
[351677800,1738708245686,-500.0,0.00010273,2]
[351677801,1738708245693,-378.41,0.00010405,2]
[351677802,1738708245703,-184.53,0.00010406,2]
[351677803,1738708245712,-500.0,0.00010406,2]
[351677804,1738708245722,-500.0,0.00010406,2]
[351677805,1738708245731,-500.0,0.00010406,2]
[351677806,1738708245740,-500.0,0.00010406,2]
[351677807,1738708245750,-500.0,0.00010406,2]
[351677808,1738708245759,-500.0,0.00010406,2]
[351677809,1738708245768,-500.0,0.00010406,2]
[351677810,1738708245778,-500.0,0.00010406,2]
[351677811,1738708245787,-517.16,0.00010406,2]
[351677812,1738708245796,-500.0,0.00010406,2]
[351677813,1738708245806,-500.0,0.00010406,2]
[351677814,1738708245998,-500.0,0.00010406,2]
[351677815,1738708246008,-500.0,0.00010406,2]
[351677816,1738708246017,-500.0,0.00010406,2]
[351677817,1738708246026,-500.0,0.00010406,2]
[351677818,1738708246036,-199.87,0.00010406,2]
[351677819,1738708246045,-351.723489,0.00010406,2]
[351677821,1738708246055,-500.0,0.00010406,2]
[351677823,1738708246064,-500.0,0.00010406,2]
[351677824,1738708246073,-500.0,0.00010406,2]
[351677826,1738708246082,-500.0,0.00010406,2]
[351677828,1738708246091,-500.0,0.00010406,2]
[351677829,1738708246100,-333.377761,0.00010406,2]
[351677830,1738708246110,-500.0,0.00010406,2]
[351677831,1738708246119,-534.59,0.00010406,2]
[351677832,1738708246127,-500.0,0.00010406,2]
[351677833,1738708246136,-500.0,0.00010406,2]
[351677834,1738708246145,-500.0,0.00010406,2]
[351677835,1738708246155,-500.0,0.00010406,2]
[351677836,1738708246163,-500.0,0.00010406,2]
[351677837,1738708246172,-500.0,0.00010406,2]
[351677838,1738708246180,-310.920686,0.00010406,2]
[351677839,1738708246189,-500.0,0.00010406,2]
[351677840,1738708246198,-500.0,0.00010406,2]
[351677841,1738708246208,-500.0,0.00010406,2]
[351677842,1738708246217,-500.0,0.00010406,2]
[351677843,1738708246226,-500.0,0.00010406,2]
[351677844,1738708246236,-500.0,0.00010406,2]
[351677845,1738708246245,-370.74,0.00010406,2]
[351677846,1738708246254,-423.6869066,0.00010406,2]
[351677847,1738708246263,-500.0,0.00010406,2]
[351677848,1738708246273,-500.0,0.00010406,2]
[351677849,1738708246282,-500.0,0.00010406,2]
[351677850,1738708246291,-500.0,0.00010406,2]
[351677851,1738708246301,-500.0,0.00010406,2]
[351677852,1738708246312,-500.0,0.00010406,2]
[351677853,1738708246321,-546.75,0.00010406,2]
[351677854,1738708246331,-500.0,0.00010406,2]
[351677855,1738708246339,-500.0,0.00010406,2]
[351677856,1738708246348,-500.0,0.00010406,2]
[351677857,1738708246358,-526.99,0.00010406,2]
[351677858,1738708246366,-500.0,0.00010406,2]
[351677859,1738708246375,-500.0,0.00010406,2]
[351677860,1738708246384,-500.0,0.00010406,2]
[351677861,1738708246393,-500.0,0.00010406,2]
[351677862,1738708246403,-500.0,0.00010406,2]
[351677863,1738708246411,-500.0,0.00010406,2]
[351677864,1738708246420,-500.0,0.00010406,2]
[351677865,1738708246429,-500.0,0.00010406,2]
[351677866,1738708246438,-500.0,0.00010406,2]
[351677867,1738708246447,-286.58,0.00010406,2]
[351677868,1738708246456,-500.0,0.00010406,2]
[351677869,1738708246465,-500.0,0.00010406,2]
[351677870,1738708246474,-500.0,0.00010406,2]
[351677871,1738708246482,-621.78,0.00010406,2]
[351677872,1738708246490,-500.0,0.00010406,2]
[351677873,1738708246499,-500.0,0.00010406,2]
[351677874,1738708246508,-500.0,0.00010406,2]
[351677875,1738708246517,-500.0,0.00010406,2]
[351677876,1738708246526,-560.09,0.00010406,2]
[351677877,1738708246535,-408.75,0.00010406,2]
[351677878,1738708246543,-500.0,0.00010406,2]
[351677879,1738708246552,-500.0,0.00010406,2]
[351677880,1738708246562,-500.0,0.00010406,2]
[351677881,1738708246571,-500.0,0.00010406,2]
[351677882,1738708246580,-500.0,0.00010406,2]
[351677883,1738708246590,-500.0,0.00010406,2]
[351677884,1738708246600,-500.0,0.00010406,2]
[351677885,1738708246609,-700.02,0.00010406,2]
[351677886,1738708246619,-500.0,0.00010406,2]
[351677887,1738708246628,-500.0,0.00010406,2]
[351677888,1738708246638,-500.0,0.00010406,2]
[351677889,1738708246648,-500.0,0.00010406,2]
[351677890,1738708246656,-500.0,0.00010406,2]
[351677891,1738708246664,-500.0,0.00010406,2]
[351677892,1738708246673,-500.0,0.00010406,2]
[351677893,1738708246681,-500.0,0.00010406,2]
[351677894,1738708246689,-500.0,0.00010406,2]
[351677895,1738708246697,-586.63,0.00010406,2]
[351677896,1738708246706,-500.0,0.00010406,2]
[351677897,1738708246714,-1195.45,0.00010406,2]
[351677898,1738708246723,-1068.62,0.00010406,2]
[351677899,1738708246733,-426.01844767,0.00010406,2]
[351677900,1738708246742,-436.43060679,0.00010406,2]
[351677901,1738708246752,-500.0,0.00010406,2]
[351677902,1738708246761,-524.89,0.00010406,2]
[351677903,1738708246770,-165.82606738,0.00010406,2]
[351677904,1738708246780,-500.0,0.00010406,2]
[351677905,1738708246789,-271.93807833,0.00010406,2]
[351677906,1738708246798,-500.0,0.00010406,2]
[351677907,1738708246807,-500.0,0.00010406,2]
[351677908,1738708246816,-500.0,0.00010406,2]
[351677909,1738708246826,-500.0,0.00010406,2]
[351677910,1738708246835,-500.0,0.00010406,2]
[351677911,1738708246844,-108.15114021,0.00010406,2]
[351677912,1738708246857,-391.84885979,0.00010406,2]
[351677913,1738708246867,-500.0,0.00010406,2]
[351677914,1738708246876,-206.99714021,0.00010406,2]
[351677915,1738708246888,-255.64998475,0.00010406,2]
[351677916,1738708246899,-37.35287504,0.00010406,2]
[351677917,1738708246908,-658.5,0.00010406,2]
[351677918,1738708246918,-187.34,0.00010406,2]
[351677919,1738708246927,-500.0,0.00010406,2]
[351677920,1738708246935,-500.0,0.00010406,2]
[351677921,1738708246944,-959.97,0.00010406,2]
[351677922,1738708246954,-500.0,0.00010406,2]
[351677923,1738708246963,-500.0,0.00010406,2]
[351677924,1738708246972,-500.0,0.00010406,2]
[351677925,1738708246981,-500.0,0.00010406,2]
[351677926,1738708246990,-505.12,0.00010406,2]
[351677927,1738708246999,-500.0,0.00010406,2]
[351677928,1738708247009,-500.0,0.00010406,2]
[351677929,1738708247018,-500.0,0.00010406,2]
[351677930,1738708247027,-474.19,0.00010406,2]
[351677931,1738708247037,-500.0,0.00010406,2]
[351677932,1738708247046,-500.0,0.00010406,2]
[351677933,1738708247056,-500.0,0.00010406,2]
[351677934,1738708247065,-569.86,0.00010406,2]
[351677935,1738708247075,-500.0,0.00010406,2]
[351677936,1738708247084,-500.0,0.00010406,2]
[351677937,1738708247093,-500.0,0.00010406,2]
[351677938,1738708247104,-500.0,0.00010406,2]
[351677939,1738708247113,-500.0,0.00010406,2]
[351677940,1738708247122,-500.0,0.00010406,2]
[351677941,1738708247131,-500.0,0.00010406,2]
[351677942,1738708247140,-500.0,0.00010406,2]
[351677943,1738708247150,-682.74,0.00010406,2]
[351677944,1738708247160,-500.0,0.00010406,2]
[351677945,1738708247169,-500.0,0.00010406,2]
[351677946,1738708247178,-500.0,0.00010406,2]
[351677947,1738708247187,-500.0,0.00010406,2]
[351677948,1738708247199,-500.0,0.00010406,2]
[351677949,1738708247208,-500.0,0.00010406,2]
[351677950,1738708247218,-696.87,0.00010406,2]
[351677951,1738708247227,-500.0,0.00010406,2]
[351677952,1738708247236,-500.0,0.00010406,2]
[351677953,1738708247245,-500.0,0.00010406,2]
[351677954,1738708247255,-500.0,0.00010406,2]
[351677955,1738708247263,-597.75,0.00010406,2]
[351677956,1738708247273,-500.0,0.00010406,2]
[351677957,1738708247282,-500.0,0.00010406,2]
[351677958,1738708247291,-500.0,0.00010406,2]
[351677959,1738708247300,-500.0,0.00010406,2]
[351677960,1738708247311,-500.0,0.00010406,2]
[351677961,1738708247320,-500.0,0.00010406,2]
[351677962,1738708247328,-1000.0,0.00010406,2]
[351677963,1738708247337,-500.0,0.00010406,2]
[351677964,1738708247346,-500.0,0.00010406,2]
[351677965,1738708247357,-500.0,0.00010406,2]
[351677966,1738708247366,-500.0,0.00010406,2]
[351677967,1738708247376,-500.0,0.00010406,2]
[351677968,1738708247384,-500.0,0.00010406,2]
[351677969,1738708247393,-500.0,0.00010406,2]
[351677970,1738708247402,-500.0,0.00010406,2]
[351677971,1738708247410,-500.0,0.00010406,2]
[351677972,1738708247419,-823.32,0.00010406,2]
[351677973,1738708247427,-865.37,0.00010406,2]
[351677974,1738708247436,-503.2,0.00010406,2]
[351677975,1738708247444,-500.0,0.00010406,2]
[351677976,1738708247453,-563.67,0.00010406,2]
[351677977,1738708247462,-500.0,0.00010406,2]
[351677978,1738708247470,-500.0,0.00010406,2]
[351677979,1738708247479,-500.0,0.00010406,2]
[351677980,1738708247487,-500.0,0.00010406,2]
[351677981,1738708247494,-509.39280079,0.00010407,2]
[351677982,1738708247503,-500.0,0.00010407,2]
[351677983,1738708247513,-500.0,0.00010407,2]
[351677984,1738708247522,-500.0,0.00010407,2]
[351677985,1738708247530,-300.0,0.00010407,2]
[351677986,1738708247539,-505.38776975,0.00010407,2]
[351677987,1738708247550,-500.0,0.00010407,2]
[351677988,1738708247559,-500.0,0.00010407,2]
[351677989,1738708247568,-355.1202039,0.00010407,2]
[351677990,1738708247783,-144.8797961,0.00010407,2]
[351677991,1738708247793,-500.0,0.00010407,2]
[351677992,1738708247803,-500.0,0.00010407,2]
[351677993,1738708247812,-502.45165761,0.00010407,2]
[351677994,1738708247821,-500.0,0.00010407,2]
[351677995,1738708247831,-500.0,0.00010407,2]
[351677996,1738708247840,-500.0,0.00010407,2]
[351677997,1738708247849,-500.0,0.00010407,2]
[351677998,1738708247859,-500.0,0.00010407,2]
[351677999,1738708247869,-500.0,0.00010407,2]
[351678000,1738708247879,-343.01743488,0.00010407,2]
[351678001,1738708247925,-156.98256512,0.00010407,2]
[351678002,1738708247934,-500.0,0.00010407,2]
[351678003,1738708247943,-500.0,0.00010407,2]
[351678004,1738708247953,-500.0,0.00010407,2]
[351678005,1738708247963,-500.0,0.00010407,2]
[351678006,1738708247972,-500.0,0.00010407,2]
[351678007,1738708247981,-500.0,0.00010407,2]
[351678008,1738708247991,-500.0,0.00010407,2]
[351678009,1738708248001,-512.02908808,0.00010407,2]
[351678010,1738708248011,-377.21,0.00010407,2]
[351678011,1738708248021,-565.67,0.00010409,2]
[351678012,1738708248031,-500.0,0.00010543,2]
[351678013,1738708248041,-500.0,0.00010543,2]
[351678014,1738708248051,-500.0,0.00010543,2]
[351678015,1738708248061,-500.0,0.00010543,2]
[351678016,1738708248071,-500.0,0.00010543,2]
[351678017,1738708248081,-351.723489,0.00010543,2]
[351678018,1738708248091,-414.21,0.00010543,2]
[351678019,1738708248103,-500.0,0.00010543,2]
[351678020,1738708248113,-500.0,0.00010543,2]
[351678021,1738708248125,-500.0,0.00010543,2]
[351678022,1738708248135,-310.920686,0.00010543,2]
[351678023,1738708248144,-158.50035784,0.00010543,2]
[351678024,1738708248154,-500.0,0.00010543,2]
[351678025,1738708248163,-500.0,0.00010543,2]
[351678026,1738708248173,-500.0,0.00010543,2]
[351678027,1738708248183,-500.0,0.00010543,2]
[351678028,1738708248192,-500.0,0.00010543,2]
[351678029,1738708248202,-209.64,0.00010543,2]
[351678030,1738708248211,-621.52,0.00010543,2]
[351678031,1738708248221,-500.0,0.00010543,2]
[351678032,1738708248230,-500.0,0.00010543,2]
[351678033,1738708248239,-500.0,0.00010543,2]
[351678034,1738708248250,-234.27209206,0.00010543,2]
[351678035,1738708248259,-500.0,0.00010543,2]
[351678036,1738708248269,-318.66,0.00010543,2]
[351678037,1738708248279,-500.0,0.00010543,2]
[351678038,1738708248289,-500.0,0.00010543,2]
[351678039,1738708248298,-500.0,0.00010543,2]
[351678040,1738708248309,-500.0,0.00010543,2]
[351678041,1738708248321,-446.16,0.00010543,2]
[351678042,1738708248331,-500.0,0.00010543,2]
[351678043,1738708248341,-500.0,0.00010543,2]
[351678044,1738708248353,-700.02,0.00010543,2]
[351678045,1738708248363,-500.0,0.00010543,2]
[351678046,1738708248372,-500.0,0.00010543,2]
[351678047,1738708248382,-500.0,0.00010543,2]
[351678048,1738708248393,-500.0,0.00010543,2]
[351678049,1738708248402,-500.0,0.00010543,2]
[351678050,1738708248412,-260.63,0.00010543,2]
[351678051,1738708248421,-500.0,0.00010543,2]
[351678052,1738708248431,-379.35,0.00010543,2]
[351678053,1738708248440,-586.63,0.00010543,2]
[351678054,1738708248452,-1195.45,0.00010543,2]
[351678055,1738708248461,-1068.62,0.00010543,2]
[351678056,1738708248471,-524.89,0.00010543,2]
[351678057,1738708248480,-500.0,0.00010543,2]
[351678058,1738708248490,-500.0,0.00010543,2]
[351678059,1738708248499,-500.0,0.00010543,2]
[351678060,1738708248508,-500.0,0.00010543,2]
[351678061,1738708248520,-500.0,0.00010543,2]
[351678062,1738708248529,-500.0,0.00010543,2]
[351678063,1738708248539,-500.0,0.00010543,2]
[351678064,1738708248548,-500.0,0.00010543,2]
[351678065,1738708248558,-500.0,0.00010543,2]
[351678066,1738708248568,-658.5,0.00010543,2]
[351678067,1738708248578,-500.0,0.00010543,2]
[351678068,1738708248587,-316.97,0.00010543,2]
[351678069,1738708248597,-959.97,0.00010543,2]
[351678070,1738708248608,-500.0,0.00010543,2]
[351678071,1738708248617,-500.0,0.00010543,2]
[351678072,1738708248626,-500.0,0.00010543,2]
[351678073,1738708248636,-500.0,0.00010543,2]
[351678074,1738708248645,-505.12,0.00010543,2]
[351678075,1738708248655,-500.0,0.00010543,2]
[351678076,1738708248663,-500.0,0.00010543,2]
[351678077,1738708248673,-500.0,0.00010543,2]
[351678078,1738708248683,-500.0,0.00010543,2]
[351678079,1738708248692,-500.0,0.00010543,2]
[351678080,1738708248702,-500.0,0.00010543,2]
[351678081,1738708248711,-500.0,0.00010543,2]
[351678082,1738708248721,-500.0,0.00010543,2]
[351678083,1738708248730,-500.0,0.00010543,2]
[351678084,1738708248739,-500.0,0.00010543,2]
[351678085,1738708248748,-500.0,0.00010543,2]
[351678086,1738708248758,-682.74,0.00010543,2]
[351678087,1738708248767,-500.0,0.00010543,2]
[351678088,1738708248776,-500.0,0.00010543,2]
[351678089,1738708248785,-500.0,0.00010543,2]
[351678090,1738708248795,-500.0,0.00010543,2]
[351678091,1738708248804,-696.87,0.00010543,2]
[351678092,1738708248813,-500.0,0.00010543,2]
[351678093,1738708248822,-500.0,0.00010543,2]
[351678094,1738708248831,-500.0,0.00010543,2]
[351678095,1738708248841,-500.0,0.00010543,2]
[351678096,1738708248850,-384.624,0.00010543,2]
[351678097,1738708248862,-500.0,0.00010543,2]
[351678098,1738708248871,-500.0,0.00010543,2]
[351678099,1738708248880,-500.0,0.00010543,2]
[351678100,1738708248890,-500.0,0.00010543,2]
[351678101,1738708248901,-500.0,0.00010543,2]
[351678102,1738708248911,-500.0,0.00010543,2]
[351678103,1738708248921,-500.0,0.00010543,2]
[351678104,1738708248930,-500.0,0.00010543,2]
[351678105,1738708248939,-500.0,0.00010543,2]
[351678106,1738708248948,-823.32,0.00010543,2]
[351678107,1738708248958,-865.37,0.00010543,2]
[351678108,1738708248967,-503.2,0.00010543,2]
[351678109,1738708248976,-500.0,0.00010543,2]
[351678110,1738708248986,-563.67,0.00010543,2]
[351678111,1738708248995,-500.0,0.00010543,2]
[351678112,1738708249004,-500.0,0.00010543,2]
[351678113,1738708249014,-500.0,0.00010543,2]
[351678114,1738708249023,-182.63,0.00010543,2]
[351678115,1738708249032,-1000.0,0.00010565,2]
[351678116,1738708249041,-500.0,0.00010567,2]
[351678117,1738708249051,-152.01,0.00010658,2]
[351678118,1738708249061,-152.65,0.00010658,2]
[351678119,1738708249070,-500.0,0.0001068,2]
[351678120,1738708249079,-500.0,0.0001068,2]
[351678121,1738708249089,-500.0,0.0001068,2]
[351678122,1738708249098,-500.0,0.0001068,2]
[351678123,1738708249111,-500.0,0.0001068,2]
[351678124,1738708249120,-351.723489,0.0001068,2]
[351678125,1738708249129,-500.0,0.0001068,2]
[351678126,1738708249139,-331.23327616,0.0001068,2]
[351678127,1738708249148,-500.0,0.0001068,2]
[351678128,1738708249157,-310.920686,0.0001068,2]
[351678129,1738708249167,-500.0,0.0001068,2]
[351678130,1738708249176,-500.0,0.0001068,2]
[351678131,1738708249186,-500.0,0.0001068,2]
[351678132,1738708249195,-500.0,0.0001068,2]
[351678133,1738708249205,-500.0,0.0001068,2]
[351678134,1738708249214,-500.0,0.0001068,2]
[351678135,1738708249223,-500.0,0.0001068,2]
[351678136,1738708249233,-308.79,0.0001068,2]
[351678137,1738708249243,-500.0,0.0001068,2]
[351678138,1738708249252,-500.0,0.0001068,2]
[351678139,1738708249262,-500.0,0.0001068,2]
[351678140,1738708249271,-500.0,0.0001068,2]
[351678141,1738708249280,-500.0,0.0001068,2]
[351678142,1738708249290,-376.91,0.0001068,2]
[351678143,1738708249299,-500.0,0.0001068,2]
[351678144,1738708249312,-700.02,0.0001068,2]
[351678145,1738708249321,-561.82,0.0001068,2]
[351678146,1738708249331,-500.0,0.0001068,2]
[351678147,1738708249341,-500.0,0.0001068,2]
[351678148,1738708249351,-500.0,0.0001068,2]
[351678149,1738708249361,-500.0,0.0001068,2]
[351678150,1738708249371,-500.0,0.0001068,2]
[351678151,1738708249380,-586.63,0.0001068,2]
[351678152,1738708249390,-981.22027081,0.0001068,2]
[351678153,1738708249404,-214.22972919,0.0001068,2]
[351678154,1738708249413,-1068.62,0.0001068,2]
[351678155,1738708249423,-524.89,0.0001068,2]
[351678156,1738708249432,-500.0,0.0001068,2]
[351678157,1738708249442,-500.0,0.0001068,2]
[351678158,1738708249451,-500.0,0.0001068,2]
[351678159,1738708249461,-500.0,0.0001068,2]
[351678160,1738708249470,-500.0,0.0001068,2]
[351678161,1738708249479,-500.0,0.0001068,2]
[351678162,1738708249489,-500.0,0.0001068,2]
[351678163,1738708249498,-513.24,0.0001068,2]
[351678164,1738708249508,-500.0,0.0001068,2]
[351678165,1738708249518,-658.5,0.0001068,2]
[351678166,1738708249528,-500.0,0.0001068,2]
[351678167,1738708249537,-959.97,0.0001068,2]
[351678168,1738708249546,-500.0,0.0001068,2]
[351678169,1738708249555,-189.61210021,0.0001068,2]
[351678170,1738708249565,-500.0,0.0001068,2]
[351678171,1738708249575,-500.0,0.0001068,2]
[351678172,1738708249584,-505.12,0.0001068,2]
[351678173,1738708249594,-68.8181706,0.0001068,2]
[351678174,1738708249608,-431.1818294,0.0001068,2]
[351678175,1738708249804,-500.0,0.0001068,2]
[351678176,1738708249814,-500.0,0.0001068,2]
[351678177,1738708249823,-500.0,0.0001068,2]
[351678178,1738708249831,-500.0,0.0001068,2]
[351678179,1738708249839,-500.0,0.0001068,2]
[351678180,1738708249848,-500.0,0.0001068,2]
[351678181,1738708249859,-500.0,0.0001068,2]
[351678182,1738708249868,-500.0,0.0001068,2]
[351678183,1738708249876,-500.0,0.0001068,2]
[351678184,1738708249885,-500.0,0.0001068,2]
[351678185,1738708249894,-682.74,0.0001068,2]
[351678186,1738708249902,-500.0,0.0001068,2]
[351678187,1738708249911,-500.0,0.0001068,2]
[351678188,1738708249920,-203.43,0.0001068,2]
[351678189,1738708249929,-696.87,0.0001068,2]
[351678190,1738708249937,-243.39,0.0001068,2]